[Event "Early-Titled-Tuesday-Blitz-January-16-2024"]
[Site "Chess.com"]
[Date "2024.01.16"]
[Round "9"]
[White "JMCadavid1998"]
[Black "Mops_2004"]
[Result "1-0"]
[WhiteElo "2284"]
[BlackElo "2669"]
[TimeControl "180+1"]
[EndTime "9:46:48 PST"]
[Termination "JMCadavid1998 won by resignation"]

1. d4 {[%clk 0:03:00.9]} 1... d5 {[%clk 0:02:59.2]} 2. Nf3 {[%clk 0:02:59.9]}
2... Nf6 {[%clk 0:02:58.9]} 3. c4 {[%clk 0:03:00.2]} 3... e6 {[%clk 0:02:58.9]}
4. Nc3 {[%clk 0:03:00.3]} 4... a6 {[%clk 0:02:58.6]} 5. cxd5 {[%clk 0:02:57.2]}
5... exd5 {[%clk 0:02:58.8]} 6. Bg5 {[%clk 0:02:57.6]} 6... Be6 {[%clk
0:02:58.8]} 7. Bxf6 {[%clk 0:02:56.9]} 7... Qxf6 {[%clk 0:02:58.4]} 8. Qb3
{[%clk 0:02:56.7]} 8... Ra7 {[%clk 0:02:58.7]} 9. h4 {[%clk 0:02:54.3]} 9... Bd6
{[%clk 0:02:54.2]} 10. g3 {[%clk 0:02:49.2]} 10... h6 {[%clk 0:02:38.2]} 11. Bh3
{[%clk 0:02:43.2]} 11... O-O {[%clk 0:01:50]} 12. Nxd5 {[%clk 0:02:39.2]} 12...
Bxd5 {[%clk 0:01:50.1]} 13. Qxd5 {[%clk 0:02:38.6]} 13... Nc6 {[%clk 0:01:47.4]}
14. Rd1 {[%clk 0:02:28.5]} 14... Bb4+ {[%clk 0:01:44]} 15. Kf1 {[%clk
0:02:28.8]} 15... Raa8 {[%clk 0:01:44.4]} 16. Kg2 {[%clk 0:02:25.1]} 16... Rad8
{[%clk 0:01:44.4]} 17. Qc4 {[%clk 0:02:25.3]} 17... b5 {[%clk 0:01:42.2]} 18.
Qb3 {[%clk 0:02:10.5]} 18... Qe7 {[%clk 0:01:27]} 19. e3 {[%clk 0:02:08.3]}
19... Na5 {[%clk 0:01:24.2]} 20. Qc2 {[%clk 0:02:06.2]} 20... Bd6 {[%clk
0:01:22.7]} 21. Bf5 {[%clk 0:02:01.6]} 21... c5 {[%clk 0:01:18.1]} 22. dxc5
{[%clk 0:01:57.9]} 22... Bxc5 {[%clk 0:01:18.1]} 23. Rxd8 {[%clk 0:01:55.9]}
23... Rxd8 {[%clk 0:01:19]} 24. Rd1 {[%clk 0:01:55.8]} 24... Rxd1 {[%clk
0:01:19]} 25. Qxd1 {[%clk 0:01:56.7]} 25... Nc4 {[%clk 0:01:19.3]} 26. b3 {[%clk
0:01:53.8]} 26... Nd6 {[%clk 0:01:18.5]} 27. Bc2 {[%clk 0:01:53]} 27... Qb7
{[%clk 0:01:03.3]} 28. Qd3 {[%clk 0:01:48.5]} 28... f5 {[%clk 0:00:53.5]} 29.
Qd1 {[%clk 0:01:38]} 29... Kf8 {[%clk 0:00:45.5]} 30. Kg1 {[%clk 0:01:38.2]}
30... Ke7 {[%clk 0:00:40]} 31. h5 {[%clk 0:01:33.9]} 31... Ke6 {[%clk
0:00:33.8]} 32. Nh4 {[%clk 0:01:33.7]} 32... Qd5 {[%clk 0:00:22.3]} 33. Bxf5+
{[%clk 0:01:33.4]} 33... Nxf5 {[%clk 0:00:17]} 34. Qxd5+ {[%clk 0:01:33.7]}
34... Kxd5 {[%clk 0:00:17.9]} 35. Nxf5 {[%clk 0:01:33.9]} 35... Ke4 {[%clk
0:00:18.6]} 36. Nxg7 {[%clk 0:01:33.3]} 36... Kd3 {[%clk 0:00:19.1]} 37. Nf5
{[%clk 0:01:32]} 37... Bf8 {[%clk 0:00:19.3]} 38. g4 {[%clk 0:01:27.7]} 38...
Kc2 {[%clk 0:00:19.4]} 39. g5 {[%clk 0:01:25.5]} 39... hxg5 {[%clk 0:00:19]} 40.
h6 {[%clk 0:01:26.1]} 40... Bxh6 {[%clk 0:00:19.2]} 41. Nxh6 {[%clk 0:01:27]}
41... b4 {[%clk 0:00:18.8]} 42. e4 {[%clk 0:01:27.1]} 1-0

[Event "Early-Titled-Tuesday-Blitz-January-16-2024"]
[Site "Chess.com"]
[Date "2024.01.16"]
[Round "9"]
[White "forevery0ung"]
[Black "artooon"]
[Result "0-1"]
[WhiteElo "2843"]
[BlackElo "2975"]
[TimeControl "180+1"]
[EndTime "9:46:58 PST"]
[Termination "artooon won by resignation"]

1. e4 {[%clk 0:03:00.9]} 1... e5 {[%clk 0:02:58.6]} 2. Nf3 {[%clk 0:03:00.8]}
2... Nc6 {[%clk 0:02:58]} 3. d4 {[%clk 0:02:59.5]} 3... exd4 {[%clk 0:02:58.9]}
4. Nxd4 {[%clk 0:02:59.9]} 4... Nf6 {[%clk 0:02:59]} 5. Nxc6 {[%clk 0:02:57.7]}
5... bxc6 {[%clk 0:02:59.9]} 6. Bd3 {[%clk 0:02:57.6]} 6... d5 {[%clk
0:03:00.1]} 7. exd5 {[%clk 0:02:57.4]} 7... cxd5 {[%clk 0:03:01]} 8. O-O {[%clk
0:02:57.5]} 8... Be7 {[%clk 0:02:58.7]} 9. c4 {[%clk 0:02:57.8]} 9... d4 {[%clk
0:02:55.6]} 10. Bg5 {[%clk 0:02:18]} 10... O-O {[%clk 0:02:47.7]} 11. Nd2 {[%clk
0:02:18.5]} 11... Bb7 {[%clk 0:02:39.3]} 12. Nf3 {[%clk 0:02:16.6]} 12... c5
{[%clk 0:02:32.4]} 13. Re1 {[%clk 0:02:14.8]} 13... h6 {[%clk 0:02:30.3]} 14.
Bh4 {[%clk 0:02:10]} 14... Qc7 {[%clk 0:02:22.7]} 15. Ne5 {[%clk 0:02:00.7]}
15... Rae8 {[%clk 0:02:19.7]} 16. Qc2 {[%clk 0:01:57.4]} 16... Bd6 {[%clk
0:02:06.2]} 17. Bxf6 {[%clk 0:01:20.3]} 17... Bxe5 {[%clk 0:02:05.2]} 18. Bxe5
{[%clk 0:01:20]} 18... Rxe5 {[%clk 0:02:06.1]} 19. Rxe5 {[%clk 0:01:19.6]} 19...
Qxe5 {[%clk 0:02:07]} 20. Qd2 {[%clk 0:01:20]} 20... Re8 {[%clk 0:02:06.1]} 21.
b4 {[%clk 0:01:13.1]} 21... cxb4 {[%clk 0:01:57.9]} 22. Qxb4 {[%clk 0:01:14]}
22... Bc6 {[%clk 0:01:57.5]} 23. Qd2 {[%clk 0:01:10.7]} 23... h5 {[%clk
0:01:39.8]} 24. h4 {[%clk 0:01:06.2]} 24... g6 {[%clk 0:01:35.4]} 25. Rb1 {[%clk
0:00:52.5]} 25... Kg7 {[%clk 0:01:28.9]} 26. Kf1 {[%clk 0:00:42.9]} 26... Qh2
{[%clk 0:01:22.3]} 27. f3 {[%clk 0:00:32.4]} 27... Bxf3 {[%clk 0:01:22.3]} 28.
Qf2 {[%clk 0:00:21.8]} 28... Re3 {[%clk 0:01:09.6]} 29. gxf3 {[%clk 0:00:12.8]}
29... Qh1+ {[%clk 0:01:09.6]} 30. Qg1 {[%clk 0:00:12.4]} 30... Qh3+ {[%clk
0:01:07.9]} 0-1

[Event "Early-Titled-Tuesday-Blitz-January-16-2024"]
[Site "Chess.com"]
[Date "2024.01.16"]
[Round "9"]
[White "WhiteKnight2612"]
[Black "Vesper2018"]
[Result "1-0"]
[WhiteElo "2871"]
[BlackElo "2579"]
[TimeControl "180+1"]
[EndTime "9:46:59 PST"]
[Termination "WhiteKnight2612 won on time"]

1. d4 {[%clk 0:03:00.9]} 1... Nf6 {[%clk 0:02:59.4]} 2. c4 {[%clk 0:03:01.4]}
2... g6 {[%clk 0:02:59.5]} 3. Nc3 {[%clk 0:03:01.8]} 3... Bg7 {[%clk 0:03:00.3]}
4. Nf3 {[%clk 0:03:01.9]} 4... O-O {[%clk 0:03:00.2]} 5. g3 {[%clk 0:03:02.5]}
5... d6 {[%clk 0:03:00.7]} 6. Bg2 {[%clk 0:03:03.1]} 6... Nc6 {[%clk 0:03:01.1]}
7. d5 {[%clk 0:03:02.5]} 7... Na5 {[%clk 0:02:57.7]} 8. Nd2 {[%clk 0:03:03.1]}
8... c5 {[%clk 0:02:56.9]} 9. O-O {[%clk 0:03:03.7]} 9... a6 {[%clk 0:02:56.2]}
10. Qc2 {[%clk 0:03:04]} 10... Rb8 {[%clk 0:02:55.7]} 11. b3 {[%clk 0:03:03.4]}
11... b5 {[%clk 0:02:53.3]} 12. Rb1 {[%clk 0:03:03.6]} 12... Bd7 {[%clk
0:02:49.3]} 13. Bb2 {[%clk 0:03:02.5]} 13... Qc8 {[%clk 0:02:40.2]} 14. Rfe1
{[%clk 0:02:59.2]} 14... Bh3 {[%clk 0:02:31.7]} 15. Bh1 {[%clk 0:02:59]} 15...
Ng4 {[%clk 0:02:27.3]} 16. Ba1 {[%clk 0:02:50.3]} 16... f5 {[%clk 0:02:20.5]}
17. Nd1 {[%clk 0:02:39.2]} 17... Bxa1 {[%clk 0:01:40]} 18. Rxa1 {[%clk
0:02:40.1]} 18... Ne5 {[%clk 0:01:22.8]} 19. f4 {[%clk 0:02:36]} 19... Ng4
{[%clk 0:01:21.5]} 20. e4 {[%clk 0:02:35.8]} 20... e5 {[%clk 0:01:14.2]} 21.
dxe6 {[%clk 0:02:28.9]} 21... Qxe6 {[%clk 0:01:13.9]} 22. Nf2 {[%clk 0:02:17.2]}
22... Nxf2 {[%clk 0:01:12.3]} 23. Kxf2 {[%clk 0:02:18.1]} 23... Qf6 {[%clk
0:01:05.2]} 24. e5 {[%clk 0:02:14.4]} 24... dxe5 {[%clk 0:01:03.1]} 25. Rxe5
{[%clk 0:02:14.8]} 25... Nc6 {[%clk 0:00:57]} 26. Rae1 {[%clk 0:01:59.2]} 26...
Nxe5 {[%clk 0:00:34.9]} 27. fxe5 {[%clk 0:02:00.1]} 27... Qe7 {[%clk 0:00:31.7]}
28. Bd5+ {[%clk 0:02:00.4]} 28... Kg7 {[%clk 0:00:31.1]} 29. Qc3 {[%clk
0:02:00.2]} 29... f4 {[%clk 0:00:20.3]} 30. e6+ {[%clk 0:01:55.3]} 30... Kh6
{[%clk 0:00:18.7]} 31. Qe5 {[%clk 0:01:48.6]} 31... fxg3+ {[%clk 0:00:15.4]} 32.
Kxg3 {[%clk 0:01:49.5]} 32... Bf5 {[%clk 0:00:15]} 33. Nf3 {[%clk 0:01:47.5]}
33... bxc4 {[%clk 0:00:11.7]} 34. bxc4 {[%clk 0:01:43.9]} 34... a5 {[%clk
0:00:09]} 35. h4 {[%clk 0:01:44.2]} 35... a4 {[%clk 0:00:08.2]} 36. Ng5 {[%clk
0:01:44.3]} 36... Rb4 {[%clk 0:00:05.4]} 37. Nf7+ {[%clk 0:01:33.6]} 37... Rxf7
{[%clk 0:00:05.5]} 38. exf7 {[%clk 0:01:33.8]} 38... Qxe5+ {[%clk 0:00:02.4]}
39. Rxe5 {[%clk 0:01:34.7]} 39... Kg7 {[%clk 0:00:02.4]} 40. Re8 {[%clk
0:01:34.8]} 1-0

[Event "Early-Titled-Tuesday-Blitz-January-16-2024"]
[Site "Chess.com"]
[Date "2024.01.16"]
[Round "9"]
[White "Ducke13"]
[Black "Predo63"]
[Result "1-0"]
[WhiteElo "2342"]
[BlackElo "2477"]
[TimeControl "180+1"]
[EndTime "9:47:00 PST"]
[Termination "Ducke13 won by resignation"]

1. d4 {[%clk 0:03:00.9]} 1... d5 {[%clk 0:02:59.7]} 2. g3 {[%clk 0:03:01.4]}
2... Nf6 {[%clk 0:02:59.5]} 3. Nf3 {[%clk 0:03:00.5]} 3... c6 {[%clk 0:02:59.9]}
4. c4 {[%clk 0:03:01]} 4... Bf5 {[%clk 0:02:58.7]} 5. Nc3 {[%clk 0:03:01.5]}
5... e6 {[%clk 0:02:58.7]} 6. Nh4 {[%clk 0:03:02.2]} 6... Bg6 {[%clk 0:02:58.5]}
7. Qb3 {[%clk 0:03:00.1]} 7... Qb6 {[%clk 0:02:57.9]} 8. Nxg6 {[%clk 0:03:00.6]}
8... hxg6 {[%clk 0:02:57.6]} 9. c5 {[%clk 0:03:01.2]} 9... Qc7 {[%clk
0:02:57.5]} 10. Bf4 {[%clk 0:02:56.8]} 10... Qc8 {[%clk 0:02:57.7]} 11. Bg2
{[%clk 0:02:57.4]} 11... Nbd7 {[%clk 0:02:57.8]} 12. O-O {[%clk 0:02:55.7]}
12... Be7 {[%clk 0:02:57.8]} 13. Qc2 {[%clk 0:02:53.9]} 13... O-O {[%clk
0:02:49.4]} 14. b4 {[%clk 0:02:52.4]} 14... a6 {[%clk 0:02:49.4]} 15. a4 {[%clk
0:02:38.8]} 15... Nh5 {[%clk 0:02:49.1]} 16. Bd2 {[%clk 0:02:30.7]} 16... f5
{[%clk 0:02:49]} 17. b5 {[%clk 0:02:21.8]} 17... axb5 {[%clk 0:02:47.1]} 18.
axb5 {[%clk 0:02:21.9]} 18... e5 {[%clk 0:02:47.5]} 19. bxc6 {[%clk 0:02:19.6]}
19... bxc6 {[%clk 0:02:46.8]} 20. Nxd5 {[%clk 0:02:17.3]} 20... Bf6 {[%clk
0:02:39.7]} 21. Nxf6+ {[%clk 0:02:01.8]} 21... Nhxf6 {[%clk 0:02:38.4]} 22. dxe5
{[%clk 0:01:59.5]} 22... Nxe5 {[%clk 0:02:36.9]} 23. Bc3 {[%clk 0:01:56.4]}
23... Ned7 {[%clk 0:02:35.2]} 24. Rad1 {[%clk 0:01:41.3]} 24... Kh7 {[%clk
0:02:18.4]} 25. Rd6 {[%clk 0:01:39.6]} 25... Nb8 {[%clk 0:02:18.6]} 26. Rfd1
{[%clk 0:01:20.2]} 26... Ra7 {[%clk 0:02:18.5]} 27. h4 {[%clk 0:01:04.7]} 27...
Re7 {[%clk 0:02:13.1]} 28. e3 {[%clk 0:01:02.3]} 28... Ne4 {[%clk 0:02:11.4]}
29. h5 {[%clk 0:00:36.2]} 29... Nxd6 {[%clk 0:01:54.5]} 30. hxg6+ {[%clk
0:00:31.1]} 30... Kxg6 {[%clk 0:01:53.5]} 31. cxd6 {[%clk 0:00:31.5]} 31... Ref7
{[%clk 0:01:47.3]} 32. g4 {[%clk 0:00:24.2]} 32... Kh7 {[%clk 0:01:36.9]} 33.
gxf5 {[%clk 0:00:23.2]} 33... Rf6 {[%clk 0:01:34.5]} 34. Bxf6 {[%clk 0:00:18.2]}
34... Rxf6 {[%clk 0:01:34.2]} 35. e4 {[%clk 0:00:17.2]} 35... Qd7 {[%clk
0:01:29.9]} 36. e5 {[%clk 0:00:16.8]} 36... Qxf5 {[%clk 0:01:26.3]} 37. Be4
{[%clk 0:00:16.4]} 37... Rg6+ {[%clk 0:01:24.6]} 38. Kf1 {[%clk 0:00:16.1]}
38... Qh3+ {[%clk 0:01:22]} 39. Ke1 {[%clk 0:00:15.7]} 39... Qh5 {[%clk
0:01:21.8]} 40. Bxg6+ {[%clk 0:00:15.3]} 40... Qxg6 {[%clk 0:01:20.4]} 41. Qxg6+
{[%clk 0:00:16.2]} 41... Kxg6 {[%clk 0:01:20.6]} 42. d7 {[%clk 0:00:16.7]} 42...
Nxd7 {[%clk 0:01:20.5]} 43. Rxd7 {[%clk 0:00:17.6]} 43... Kf5 {[%clk 0:01:21.2]}
44. Rxg7 {[%clk 0:00:17.1]} 1-0

[Event "Early-Titled-Tuesday-Blitz-January-16-2024"]
[Site "Chess.com"]
[Date "2024.01.16"]
[Round "9"]
[White "sucof4reve"]
[Black "mbchess97"]
[Result "0-1"]
[WhiteElo "2085"]
[BlackElo "2342"]
[TimeControl "180+1"]
[EndTime "9:47:01 PST"]
[Termination "mbchess97 won by resignation"]

1. e4 {[%clk 0:03:00.9]} 1... c5 {[%clk 0:02:59.8]} 2. Nf3 {[%clk 0:02:59.8]}
2... d6 {[%clk 0:03:00.3]} 3. d4 {[%clk 0:02:58.6]} 3... cxd4 {[%clk 0:03:00.7]}
4. Nxd4 {[%clk 0:02:59.4]} 4... Nf6 {[%clk 0:03:01.2]} 5. Nc3 {[%clk 0:02:59.7]}
5... Nc6 {[%clk 0:03:01.8]} 6. f3 {[%clk 0:02:58.1]} 6... e5 {[%clk 0:02:59]} 7.
Nb3 {[%clk 0:02:57.4]} 7... Be6 {[%clk 0:02:59]} 8. Be3 {[%clk 0:02:57.8]} 8...
d5 {[%clk 0:02:58.6]} 9. exd5 {[%clk 0:02:56.7]} 9... Nxd5 {[%clk 0:02:58.8]}
10. Nxd5 {[%clk 0:02:57.4]} 10... Qxd5 {[%clk 0:02:57.6]} 11. Qxd5 {[%clk
0:02:56.6]} 11... Bxd5 {[%clk 0:02:58]} 12. O-O-O {[%clk 0:02:57.4]} 12... O-O-O
{[%clk 0:02:57.6]} 13. c4 {[%clk 0:02:56.5]} 13... Be6 {[%clk 0:02:52.5]} 14.
Rxd8+ {[%clk 0:02:56.2]} 14... Nxd8 {[%clk 0:02:46.6]} 15. Bxa7 {[%clk
0:02:50.2]} 15... Nc6 {[%clk 0:02:43.8]} 16. Bc5 {[%clk 0:02:43.5]} 16... Kc7
{[%clk 0:02:23.1]} 17. Be2 {[%clk 0:02:40]} 17... g6 {[%clk 0:02:21.2]} 18. Rd1
{[%clk 0:02:37.9]} 18... Bh6+ {[%clk 0:02:11.1]} 19. Kb1 {[%clk 0:02:37.9]}
19... Bf5+ {[%clk 0:02:07.6]} 20. Ka1 {[%clk 0:02:37.9]} 20... Ra8 {[%clk
0:02:03.9]} 21. g4 {[%clk 0:02:31.2]} 21... Bc2 {[%clk 0:02:01.7]} 22. Bd6+
{[%clk 0:02:30.4]} 22... Kc8 {[%clk 0:01:58.3]} 23. Nc5 {[%clk 0:02:16.7]} 23...
Bxd1 {[%clk 0:01:44.6]} 24. Bxd1 {[%clk 0:02:17.6]} 24... Bf4 {[%clk 0:01:43.7]}
25. h3 {[%clk 0:02:16.3]} 25... Nd4 {[%clk 0:01:38.6]} 26. a3 {[%clk 0:02:13.8]}
26... b6 {[%clk 0:01:33.7]} 27. Ne4 {[%clk 0:02:10.8]} 27... f5 {[%clk
0:01:30.9]} 28. Nf6 {[%clk 0:02:04.7]} 28... Ra7 {[%clk 0:01:06.2]} 29. Ka2
{[%clk 0:01:57.8]} 29... Rf7 {[%clk 0:01:03.4]} 30. Nd5 {[%clk 0:01:56.6]} 30...
Kb7 {[%clk 0:00:56.7]} 31. Nxf4 {[%clk 0:01:53.1]} 31... exf4 {[%clk 0:00:56.9]}
32. Bxf4 {[%clk 0:01:54]} 32... fxg4 {[%clk 0:00:56.5]} 33. Be3 {[%clk
0:01:48.4]} 33... Nf5 {[%clk 0:00:55.5]} 34. Bf2 {[%clk 0:01:41.9]} 34... gxh3
{[%clk 0:00:54.9]} 35. Bg1 {[%clk 0:01:42]} 35... Nd4 {[%clk 0:00:37]} 36. Bxd4
{[%clk 0:01:39.9]} 36... h2 {[%clk 0:00:36.5]} 37. Bc2 {[%clk 0:01:34.6]} 37...
h1=Q {[%clk 0:00:35.4]} 38. Be4+ {[%clk 0:01:35.5]} 38... Ka7 {[%clk 0:00:33.3]}
39. c5 {[%clk 0:01:35.7]} 39... bxc5 {[%clk 0:00:31.4]} 40. Bxc5+ {[%clk
0:01:36.6]} 40... Kb8 {[%clk 0:00:30.4]} 41. a4 {[%clk 0:01:33.8]} 41... Qd1
{[%clk 0:00:27.5]} 42. Ka3 {[%clk 0:01:28.6]} 42... Rxf3+ {[%clk 0:00:27.2]} 43.
Bxf3 {[%clk 0:01:22.9]} 43... Qxf3+ {[%clk 0:00:26.9]} 44. Kb4 {[%clk
0:01:23.8]} 44... Kb7 {[%clk 0:00:24.3]} 45. a5 {[%clk 0:01:23.3]} 45... Ka6
{[%clk 0:00:24.3]} 0-1

[Event "Early-Titled-Tuesday-Blitz-January-16-2024"]
[Site "Chess.com"]
[Date "2024.01.16"]
[Round "9"]
[White "effefe"]
[Black "Quattroporte300"]
[Result "1-0"]
[WhiteElo "2315"]
[BlackElo "2435"]
[TimeControl "180+1"]
[EndTime "9:47:04 PST"]
[Termination "effefe won on time"]

1. d4 {[%clk 0:02:57.2]} 1... g6 {[%clk 0:02:57.7]} 2. c4 {[%clk 0:02:57.6]}
2... Bg7 {[%clk 0:02:58.1]} 3. Nc3 {[%clk 0:02:58.2]} 3... d6 {[%clk 0:02:58.6]}
4. e4 {[%clk 0:02:58.6]} 4... Nd7 {[%clk 0:02:58.8]} 5. Be2 {[%clk 0:02:55.9]}
5... Ngf6 {[%clk 0:02:58]} 6. Be3 {[%clk 0:02:52.7]} 6... O-O {[%clk 0:02:57.4]}
7. g4 {[%clk 0:02:53]} 7... e5 {[%clk 0:02:52.6]} 8. d5 {[%clk 0:02:53.2]} 8...
Nc5 {[%clk 0:02:49.2]} 9. f3 {[%clk 0:02:53.7]} 9... a5 {[%clk 0:02:48.1]} 10.
h4 {[%clk 0:02:54.1]} 10... h5 {[%clk 0:02:42.7]} 11. g5 {[%clk 0:02:54.3]}
11... Nfd7 {[%clk 0:02:39.1]} 12. Qc2 {[%clk 0:02:53.1]} 12... c6 {[%clk
0:02:31.3]} 13. O-O-O {[%clk 0:02:51.9]} 13... cxd5 {[%clk 0:02:30.5]} 14. Nxd5
{[%clk 0:02:49.2]} 14... a4 {[%clk 0:02:19.4]} 15. Kb1 {[%clk 0:02:49]} 15...
Kh7 {[%clk 0:01:54.8]} 16. Nc3 {[%clk 0:02:46.7]} 16... Ra6 {[%clk 0:01:45]} 17.
Nb5 {[%clk 0:02:44.8]} 17... Qe7 {[%clk 0:01:40.2]} 18. Nh3 {[%clk 0:02:40.5]}
18... Ne6 {[%clk 0:01:38.7]} 19. Nf2 {[%clk 0:02:31.9]} 19... Ndc5 {[%clk
0:01:38.4]} 20. Rd2 {[%clk 0:02:26]} 20... Bd7 {[%clk 0:01:36.5]} 21. Rhd1
{[%clk 0:02:24.2]} 21... Bxb5 {[%clk 0:01:36.1]} 22. cxb5 {[%clk 0:02:25.1]}
22... Rb6 {[%clk 0:01:33]} 23. Nd3 {[%clk 0:02:18.4]} 23... Nd4 {[%clk
0:01:23.7]} 24. Bxd4 {[%clk 0:02:09.3]} 24... exd4 {[%clk 0:01:24.6]} 25. Nf4
{[%clk 0:02:08.6]} 25... d3 {[%clk 0:00:49.5]} 26. Bxd3 {[%clk 0:02:06.3]} 26...
Nxd3 {[%clk 0:00:19.6]} 27. Qxd3 {[%clk 0:02:03]} 27... Qd7 {[%clk 0:00:17.4]}
28. e5 {[%clk 0:01:39.5]} 28... Bxe5 {[%clk 0:00:16.1]} 29. Nxh5 {[%clk
0:01:40.3]} 29... Rxb5 {[%clk 0:00:14.5]} 30. Nf6+ {[%clk 0:01:33.3]} 30... Bxf6
{[%clk 0:00:14.4]} 31. gxf6 {[%clk 0:01:34.2]} 31... Rf5 {[%clk 0:00:09]} 32.
Rh1 {[%clk 0:01:19.7]} 32... Rxf6 {[%clk 0:00:06.8]} 33. h5 {[%clk 0:01:13.9]}
33... Kg7 {[%clk 0:00:07.2]} 34. hxg6 {[%clk 0:01:14]} 34... fxg6 {[%clk
0:00:07.9]} 35. Rdh2 {[%clk 0:01:11.1]} 1-0

[Event "Early-Titled-Tuesday-Blitz-January-16-2024"]
[Site "Chess.com"]
[Date "2024.01.16"]
[Round "9"]
[White "MathiasWomacka"]
[Black "UK_23"]
[Result "0-1"]
[WhiteElo "2552"]
[BlackElo "2374"]
[TimeControl "180+1"]
[EndTime "9:47:08 PST"]
[Termination "UK_23 won on time"]

1. e4 {[%clk 0:03:00.9]} 1... e5 {[%clk 0:02:57.3]} 2. Nf3 {[%clk 0:02:59.7]}
2... Nc6 {[%clk 0:02:54.7]} 3. Bb5 {[%clk 0:03:00.2]} 3... a6 {[%clk 0:02:48.8]}
4. Bxc6 {[%clk 0:02:54.5]} 4... dxc6 {[%clk 0:02:48.5]} 5. O-O {[%clk
0:02:53.3]} 5... Bg4 {[%clk 0:02:44.3]} 6. h3 {[%clk 0:02:49]} 6... h5 {[%clk
0:02:43.3]} 7. d3 {[%clk 0:02:48.4]} 7... Bd6 {[%clk 0:02:41.5]} 8. Be3 {[%clk
0:02:42.4]} 8... Bxf3 {[%clk 0:02:28.4]} 9. Qxf3 {[%clk 0:02:41.5]} 9... Ne7
{[%clk 0:02:28.9]} 10. Nd2 {[%clk 0:02:34.4]} 10... c5 {[%clk 0:02:24.9]} 11.
Nc4 {[%clk 0:02:22.1]} 11... Qd7 {[%clk 0:02:04.5]} 12. a3 {[%clk 0:02:14.1]}
12... f6 {[%clk 0:01:56.7]} 13. b4 {[%clk 0:02:13.8]} 13... cxb4 {[%clk
0:01:51.3]} 14. axb4 {[%clk 0:02:14.7]} 14... Bxb4 {[%clk 0:01:40.9]} 15. Rab1
{[%clk 0:02:13.1]} 15... a5 {[%clk 0:01:40]} 16. Rb3 {[%clk 0:01:43.8]} 16... b5
{[%clk 0:01:35.6]} 17. Nd2 {[%clk 0:01:31.4]} 17... Bxd2 {[%clk 0:01:29.8]} 18.
Bxd2 {[%clk 0:01:30.7]} 18... a4 {[%clk 0:01:30.5]} 19. Rbb1 {[%clk 0:01:28.8]}
19... c6 {[%clk 0:01:22.7]} 20. Bb4 {[%clk 0:01:22.8]} 20... Nc8 {[%clk
0:01:20.3]} 21. c3 {[%clk 0:01:17.7]} 21... Nd6 {[%clk 0:01:18.1]} 22. d4 {[%clk
0:01:16.8]} 22... Nc4 {[%clk 0:01:17]} 23. Rfd1 {[%clk 0:01:05.5]} 23... Qf7
{[%clk 0:01:12.2]} 24. d5 {[%clk 0:00:55.9]} 24... O-O-O {[%clk 0:01:05.1]} 25.
dxc6 {[%clk 0:00:32.5]} 25... Nd2 {[%clk 0:01:00.2]} 26. Qf5+ {[%clk 0:00:24.6]}
26... Kc7 {[%clk 0:01:00]} 27. Ba5+ {[%clk 0:00:23.8]} 27... Kxc6 {[%clk
0:01:00.3]} 28. Bxd8 {[%clk 0:00:20.9]} 28... Rxd8 {[%clk 0:00:58.1]} 29. Rb2
{[%clk 0:00:14.8]} 29... g6 {[%clk 0:00:54.6]} 0-1

[Event "Early-Titled-Tuesday-Blitz-January-16-2024"]
[Site "Chess.com"]
[Date "2024.01.16"]
[Round "9"]
[White "yaguigor"]
[Black "NM_Antelacus"]
[Result "1-0"]
[WhiteElo "2625"]
[BlackElo "2175"]
[TimeControl "180+1"]
[EndTime "9:47:10 PST"]
[Termination "yaguigor won by resignation"]

1. Nf3 {[%clk 0:02:55.5]} 1... Nf6 {[%clk 0:02:58.9]} 2. c4 {[%clk 0:02:54.9]}
2... e6 {[%clk 0:02:58.3]} 3. Nc3 {[%clk 0:02:54.5]} 3... b6 {[%clk 0:02:55.8]}
4. e4 {[%clk 0:02:53.3]} 4... d6 {[%clk 0:02:51.1]} 5. d4 {[%clk 0:02:52.4]}
5... Bb7 {[%clk 0:02:51.1]} 6. Bd3 {[%clk 0:02:51.6]} 6... c5 {[%clk 0:02:45.2]}
7. d5 {[%clk 0:02:50.5]} 7... e5 {[%clk 0:02:42.5]} 8. O-O {[%clk 0:02:49]} 8...
Be7 {[%clk 0:02:41.4]} 9. Kh1 {[%clk 0:02:46.4]} 9... Nbd7 {[%clk 0:02:38.6]}
10. Rg1 {[%clk 0:02:41.5]} 10... Nf8 {[%clk 0:02:36.3]} 11. Bc2 {[%clk 0:02:37]}
11... Ng6 {[%clk 0:02:34.8]} 12. Ba4+ {[%clk 0:02:36.9]} 12... Nd7 {[%clk
0:02:29.7]} 13. g3 {[%clk 0:02:20.7]} 13... O-O {[%clk 0:02:28.2]} 14. a3 {[%clk
0:02:17.7]} 14... a6 {[%clk 0:02:26.4]} 15. b4 {[%clk 0:02:09.1]} 15... f5
{[%clk 0:02:19.1]} 16. exf5 {[%clk 0:02:08.2]} 16... Rxf5 {[%clk 0:02:17.7]} 17.
Bc2 {[%clk 0:02:08.3]} 17... Rf8 {[%clk 0:02:08.5]} 18. h4 {[%clk 0:02:06.4]}
18... Nf6 {[%clk 0:02:05.4]} 19. Ng5 {[%clk 0:02:03.9]} 19... Bc8 {[%clk
0:02:04]} 20. Ne6 {[%clk 0:01:47.1]} 20... Bxe6 {[%clk 0:02:02.9]} 21. dxe6
{[%clk 0:01:48]} 21... b5 {[%clk 0:01:51.5]} 22. h5 {[%clk 0:01:29.1]} 22... Nh8
{[%clk 0:01:44.7]} 23. cxb5 {[%clk 0:01:05.9]} 23... axb5 {[%clk 0:01:42.1]} 24.
bxc5 {[%clk 0:01:06]} 24... dxc5 {[%clk 0:01:40.5]} 25. Qxd8 {[%clk 0:01:05.2]}
25... Rfxd8 {[%clk 0:01:34.1]} 26. Nxb5 {[%clk 0:00:59.2]} 26... Nxh5 {[%clk
0:01:31.4]} 27. Be3 {[%clk 0:00:56.3]} 27... Nf6 {[%clk 0:01:27]} 28. Rgd1
{[%clk 0:00:48.5]} 28... Ng6 {[%clk 0:01:24.4]} 29. a4 {[%clk 0:00:41]} 29...
Nf8 {[%clk 0:01:18.5]} 30. a5 {[%clk 0:00:37.7]} 30... Nxe6 {[%clk 0:01:09.1]}
31. Bb3 {[%clk 0:00:35.4]} 31... Kf8 {[%clk 0:00:53.7]} 32. Bxe6 {[%clk
0:00:34.3]} 1-0